[Event "*** Titled Tuesday Blitz"]
[Site "Chess.com"]
[Date "2020.04.28"]
[Round "6"]
[White "hazy13"]
[Black "monalize"]
[Result "0-1"]
[WhiteElo "2189"]
[BlackElo "2359"]
[TimeControl "180+1"]
[EndTime "11:08:09 PDT"]
[Termination "monalize won by resignation"]

1. d4 {[%clk 0:03:00.9]} 1... Nf6 {[%clk 0:02:58.1]} 2. c4 {[%clk 0:02:59.6]}
2... d6 {[%clk 0:02:57.8]} 3. Nc3 {[%clk 0:02:58.4]} 3... e5 {[%clk 0:02:57.7]}
4. e3 {[%clk 0:02:57.8]} 4... Be7 {[%clk 0:02:56]} 5. Nf3 {[%clk 0:02:56.8]}
5... Nbd7 {[%clk 0:02:55.9]} 6. Be2 {[%clk 0:02:53.3]} 6... O-O {[%clk
0:02:55.1]} 7. O-O {[%clk 0:02:52.7]} 7... c6 {[%clk 0:02:55.3]} 8. Qc2 {[%clk
0:02:45.7]} 8... Re8 {[%clk 0:02:52.3]} 9. Rd1 {[%clk 0:02:40.4]} 9... Qc7
{[%clk 0:02:47.9]} 10. b3 {[%clk 0:02:18.4]} 10... Nf8 {[%clk 0:02:46.4]} 11.
Bb2 {[%clk 0:02:17.7]} 11... Ng6 {[%clk 0:02:45.2]} 12. Rac1 {[%clk 0:02:14.8]}
12... exd4 {[%clk 0:02:40.6]} 13. Nxd4 {[%clk 0:02:11.2]} 13... a6 {[%clk
0:02:34]} 14. Nf5 {[%clk 0:02:03.1]} 14... Bf8 {[%clk 0:02:33.2]} 15. Bf3 {[%clk
0:01:54.3]} 15... Ne5 {[%clk 0:02:31.5]} 16. Be2 {[%clk 0:01:49.4]} 16... Be6
{[%clk 0:02:15.4]} 17. Ng3 {[%clk 0:01:43.1]} 17... Rad8 {[%clk 0:02:09.7]} 18.
Nce4 {[%clk 0:01:42.4]} 18... Nxe4 {[%clk 0:02:03.4]} 19. Nxe4 {[%clk
0:01:39.7]} 19... Bc8 {[%clk 0:01:53]} 20. Ng5 {[%clk 0:01:33.6]} 20... Ng6
{[%clk 0:01:46.5]} 21. h4 {[%clk 0:01:24.2]} 21... f5 {[%clk 0:01:18.7]} 22. h5
{[%clk 0:01:18.3]} 22... Ne5 {[%clk 0:01:13.5]} 23. h6 {[%clk 0:01:12.6]} 23...
gxh6 {[%clk 0:01:10]} 24. Nf3 {[%clk 0:01:03.1]} 24... Ng4 {[%clk 0:01:06.4]}
25. Nd4 {[%clk 0:00:51.9]} 25... Qf7 {[%clk 0:01:04.4]} 26. Nf3 {[%clk
0:00:33.2]} 26... Be6 {[%clk 0:00:48]} 27. Nh4 {[%clk 0:00:20.9]} 27... Re7
{[%clk 0:00:37.2]} 28. Qc3 {[%clk 0:00:19.3]} 28... Bg7 {[%clk 0:00:34.9]} 29.
Qxg7+ {[%clk 0:00:17.9]} 29... Qxg7 {[%clk 0:00:35.7]} 30. Bxg7 {[%clk
0:00:18.4]} 30... Kxg7 {[%clk 0:00:35]} 31. Rc2 {[%clk 0:00:16.1]} 31... Kf6
{[%clk 0:00:32.8]} 32. Rcd2 {[%clk 0:00:15.9]} 32... Red7 {[%clk 0:00:32.2]} 33.
g3 {[%clk 0:00:11.4]} 33... d5 {[%clk 0:00:28.7]} 34. Ng2 {[%clk 0:00:06.5]}
34... dxc4 {[%clk 0:00:26.4]} 35. Rxd7 {[%clk 0:00:07.4]} 35... Rxd7 {[%clk
0:00:25.7]} 36. Rxd7 {[%clk 0:00:07.6]} 36... Bxd7 {[%clk 0:00:26.4]} 37. Bxc4
{[%clk 0:00:07.6]} 37... b5 {[%clk 0:00:23.3]} 38. Be2 {[%clk 0:00:07.1]} 38...
c5 {[%clk 0:00:22.7]} 39. Nf4 {[%clk 0:00:07.3]} 39... Bc6 {[%clk 0:00:19.6]}
40. Bf1 {[%clk 0:00:05.1]} 40... Ne5 {[%clk 0:00:18]} 41. Bg2 {[%clk 0:00:04.4]}
41... Bxg2 {[%clk 0:00:16.2]} 42. Kxg2 {[%clk 0:00:05.3]} 42... c4 {[%clk
0:00:16.5]} 43. bxc4 {[%clk 0:00:06.2]} 43... Nxc4 {[%clk 0:00:15.9]} 44. Kf1
{[%clk 0:00:07.1]} 44... Ke5 {[%clk 0:00:15.7]} 45. Ke2 {[%clk 0:00:06.7]} 45...
a5 {[%clk 0:00:15.4]} 46. Kd3 {[%clk 0:00:05.4]} 46... Nd6 {[%clk 0:00:15.2]}
47. Ne2 {[%clk 0:00:03.9]} 47... Ne4 {[%clk 0:00:14.5]} 48. f3 {[%clk
0:00:03.4]} 48... Nc5+ {[%clk 0:00:13.8]} 49. Kc3 {[%clk 0:00:03.5]} 49... Kd5
{[%clk 0:00:13.6]} 50. Nf4+ {[%clk 0:00:02.7]} 50... Kc6 {[%clk 0:00:12.4]} 51.
Nd3 {[%clk 0:00:02.5]} 51... Nxd3 {[%clk 0:00:11.9]} 52. Kxd3 {[%clk 0:00:03.4]}
52... Kd5 {[%clk 0:00:11.5]} 53. e4+ {[%clk 0:00:03.3]} 53... fxe4+ {[%clk
0:00:10.9]} 54. fxe4+ {[%clk 0:00:04.2]} 54... Ke5 {[%clk 0:00:11]} 55. Ke3
{[%clk 0:00:04.8]} 55... b4 {[%clk 0:00:11]} 56. Kd3 {[%clk 0:00:04.6]} 56... h5
{[%clk 0:00:09.6]} 57. Ke3 {[%clk 0:00:04.4]} 57... a4 {[%clk 0:00:09]} 58. Kd3
{[%clk 0:00:04.8]} 58... b3 {[%clk 0:00:09.1]} 59. axb3 {[%clk 0:00:05.3]} 59...
axb3 {[%clk 0:00:09.3]} 60. Kc3 {[%clk 0:00:05.4]} 60... Kxe4 {[%clk 0:00:09.5]}
61. Kxb3 {[%clk 0:00:05.9]} 61... Kf3 {[%clk 0:00:10.1]} 62. Kc3 {[%clk
0:00:06.8]} 62... Kxg3 {[%clk 0:00:10.5]} 63. Kd2 {[%clk 0:00:07.7]} 63... h4
{[%clk 0:00:10.9]} 64. Ke2 {[%clk 0:00:08.6]} 64... Kg2 {[%clk 0:00:10.4]} 0-1

[Event "*** Titled Tuesday Blitz"]
[Site "Chess.com"]
[Date "2020.04.28"]
[Round "6"]
[White "Aygehovit1992"]
[Black "vaishali2001"]
[Result "1/2-1/2"]
[WhiteElo "2670"]
[BlackElo "2506"]
[TimeControl "180+1"]
[EndTime "11:08:10 PDT"]
[Termination "Game drawn by repetition"]

1. e4 {[%clk 0:03:00.9]} 1... e5 {[%clk 0:02:58.8]} 2. Bc4 {[%clk 0:02:59.9]}
2... Nf6 {[%clk 0:02:57.4]} 3. d3 {[%clk 0:02:56]} 3... Nc6 {[%clk 0:02:57.4]}
4. Nc3 {[%clk 0:02:54.2]} 4... Na5 {[%clk 0:02:55.8]} 5. Nge2 {[%clk 0:02:53]}
5... Be7 {[%clk 0:02:55]} 6. a4 {[%clk 0:02:52.1]} 6... Nxc4 {[%clk 0:02:53.8]}
7. dxc4 {[%clk 0:02:53]} 7... d6 {[%clk 0:02:53.9]} 8. O-O {[%clk 0:02:52.2]}
8... O-O {[%clk 0:02:52.4]} 9. f3 {[%clk 0:02:52.6]} 9... Be6 {[%clk 0:02:48.9]}
10. Qd3 {[%clk 0:02:50.8]} 10... a5 {[%clk 0:02:45.2]} 11. Be3 {[%clk
0:02:49.5]} 11... c6 {[%clk 0:02:45.3]} 12. Rad1 {[%clk 0:02:47.5]} 12... Qc7
{[%clk 0:02:45.6]} 13. b3 {[%clk 0:02:47.3]} 13... Rad8 {[%clk 0:02:42]} 14. Ng3
{[%clk 0:02:31.5]} 14... d5 {[%clk 0:02:33.9]} 15. cxd5 {[%clk 0:02:30.2]} 15...
cxd5 {[%clk 0:02:34.8]} 16. Nb5 {[%clk 0:02:17.8]} 16... Qc6 {[%clk 0:02:12.1]}
17. Nf5 {[%clk 0:02:15.5]} 17... Bxf5 {[%clk 0:02:03.3]} 18. exf5 {[%clk
0:02:16.4]} 18... Bc5 {[%clk 0:01:58.7]} 19. Rfe1 {[%clk 0:02:15.1]} 19... Rfe8
{[%clk 0:01:28]} 20. Kh1 {[%clk 0:02:06.2]} 20... h6 {[%clk 0:01:06.9]} 21. Bxc5
{[%clk 0:01:46.6]} 21... Qxc5 {[%clk 0:01:07.8]} 22. Qc3 {[%clk 0:01:45.1]}
22... Rc8 {[%clk 0:00:59]} 23. Qxc5 {[%clk 0:01:38.9]} 23... Rxc5 {[%clk
0:00:59.9]} 24. c3 {[%clk 0:01:39.3]} 24... e4 {[%clk 0:00:53.2]} 25. Kg1 {[%clk
0:01:35.2]} 25... Rec8 {[%clk 0:00:39.9]} 26. Kf2 {[%clk 0:01:33.9]} 26... Rxb5
{[%clk 0:00:36.2]} 27. axb5 {[%clk 0:01:32.9]} 27... Rxc3 {[%clk 0:00:37.1]} 28.
Rb1 {[%clk 0:01:26]} 28... b6 {[%clk 0:00:27.3]} 29. Rec1 {[%clk 0:01:25.5]}
29... Rd3 {[%clk 0:00:19.4]} 30. Rc6 {[%clk 0:01:17]} 30... d4 {[%clk
0:00:12.2]} 31. Rxb6 {[%clk 0:01:16.8]} 31... e3+ {[%clk 0:00:10.5]} 32. Ke1
{[%clk 0:01:16.9]} 32... Nd5 {[%clk 0:00:09.5]} 33. Rc6 {[%clk 0:01:17.3]} 33...
Nf4 {[%clk 0:00:08.8]} 34. g3 {[%clk 0:01:09.8]} 34... Nh3 {[%clk 0:00:04.5]}
35. b6 {[%clk 0:01:01.6]} 35... Rd2 {[%clk 0:00:02.7]} 36. b7 {[%clk 0:00:59.5]}
36... d3 {[%clk 0:00:02.4]} 37. b8=Q+ {[%clk 0:00:59.4]} 37... Kh7 {[%clk
0:00:02.8]} 38. Rxh6+ {[%clk 0:00:49.7]} 38... gxh6 {[%clk 0:00:03.7]} 39. Qc7
{[%clk 0:00:44.9]} 39... Re2+ {[%clk 0:00:03.4]} 40. Kd1 {[%clk 0:00:18.5]}
40... Nf2+ {[%clk 0:00:02.7]} 41. Kc1 {[%clk 0:00:18.8]} 41... d2+ {[%clk
0:00:02.9]} 42. Kb2 {[%clk 0:00:19]} 42... d1=Q+ {[%clk 0:00:03.3]} 43. Ka3
{[%clk 0:00:18.8]} 43... Qxb1 {[%clk 0:00:02.8]} 44. Qxf7+ {[%clk 0:00:17.9]}
44... Kh8 {[%clk 0:00:02.4]} 45. Qe8+ {[%clk 0:00:17.3]} 45... Kh7 {[%clk
0:00:03.3]} 46. Qg6+ {[%clk 0:00:17.4]} 46... Kh8 {[%clk 0:00:03.7]} 47. Qxh6+
{[%clk 0:00:17.6]} 47... Kg8 {[%clk 0:00:03.9]} 48. Qg6+ {[%clk 0:00:17.6]}
48... Kf8 {[%clk 0:00:04.3]} 49. Qf6+ {[%clk 0:00:17.9]} 49... Ke8 {[%clk
0:00:04.9]} 50. Qe6+ {[%clk 0:00:18.2]} 50... Kd8 {[%clk 0:00:05.1]} 51. Qd6+
{[%clk 0:00:18.4]} 51... Ke8 {[%clk 0:00:05.3]} 52. Qe6+ {[%clk 0:00:18.5]}
52... Kd8 {[%clk 0:00:05.7]} 53. Qd6+ {[%clk 0:00:18.6]} 53... Kc8 {[%clk
0:00:05.6]} 54. Qc6+ {[%clk 0:00:18.6]} 54... Kb8 {[%clk 0:00:05.9]} 55. Qb6+
{[%clk 0:00:18.1]} 55... Kc8 {[%clk 0:00:06.4]} 56. Qc6+ {[%clk 0:00:17.6]}
56... Kd8 {[%clk 0:00:06.9]} 57. Qd6+ {[%clk 0:00:17]} 1/2-1/2

[Event "*** Titled Tuesday Blitz"]
[Site "Chess.com"]
[Date "2020.04.28"]
[Round "6"]
[White "gmelviro"]
[Black "kuba2006"]
[Result "0-1"]
[WhiteElo "2145"]
[BlackElo "2405"]
[TimeControl "180+1"]
[EndTime "11:08:10 PDT"]
[Termination "kuba2006 won by resignation"]

1. c4 {[%clk 0:03:00.9]} 1... Nf6 {[%clk 0:03:00.9]} 2. g3 {[%clk 0:03:01.2]}
2... g6 {[%clk 0:02:59.6]} 3. Bg2 {[%clk 0:03:02.1]} 3... Bg7 {[%clk 0:03:00]}
4. Nc3 {[%clk 0:03:01.5]} 4... O-O {[%clk 0:03:00.4]} 5. d4 {[%clk 0:03:01.5]}
5... d6 {[%clk 0:03:00.8]} 6. e3 {[%clk 0:03:01.9]} 6... Nbd7 {[%clk 0:03:01.2]}
7. Nge2 {[%clk 0:03:02.3]} 7... e5 {[%clk 0:03:00.9]} 8. O-O {[%clk 0:03:02.8]}
8... c6 {[%clk 0:03:01.1]} 9. b3 {[%clk 0:03:02.2]} 9... Qe7 {[%clk 0:02:59.7]}
10. Ba3 {[%clk 0:03:01.8]} 10... c5 {[%clk 0:02:52.5]} 11. dxc5 {[%clk 0:02:43]}
11... Nxc5 {[%clk 0:02:47.9]} 12. e4 {[%clk 0:02:27.2]} 12... Be6 {[%clk
0:02:41.4]} 13. Qd2 {[%clk 0:02:20.9]} 13... Rfd8 {[%clk 0:02:36.5]} 14. Rfd1
{[%clk 0:02:19.8]} 14... Rac8 {[%clk 0:02:34.1]} 15. Rac1 {[%clk 0:02:19.1]}
15... b6 {[%clk 0:02:32.9]} 16. h3 {[%clk 0:02:15.1]} 16... Qb7 {[%clk
0:02:16.1]} 17. Qe3 {[%clk 0:01:58.5]} 17... Qa6 {[%clk 0:02:03.8]} 18. Nb5
{[%clk 0:01:39.4]} 18... Ne8 {[%clk 0:01:57.5]} 19. Nec3 {[%clk 0:01:32.1]}
19... Nc7 {[%clk 0:01:32]} 20. Nxc7 {[%clk 0:01:10]} 20... Rxc7 {[%clk
0:01:32.9]} 21. Nb5 {[%clk 0:01:10.3]} 21... Rcd7 {[%clk 0:01:31.6]} 22. Rd2
{[%clk 0:00:49.5]} 22... Bf8 {[%clk 0:01:28.5]} 23. Rcd1 {[%clk 0:00:48.9]}
23... Qb7 {[%clk 0:01:27.1]} 24. Nc3 {[%clk 0:00:46.7]} 24... Qc6 {[%clk
0:01:23.1]} 25. Bf1 {[%clk 0:00:39.4]} 25... h5 {[%clk 0:01:08.9]} 26. b4 {[%clk
0:00:39.4]} 26... Nb7 {[%clk 0:01:05.6]} 27. b5 {[%clk 0:00:39.6]} 27... Qc7
{[%clk 0:01:03.3]} 28. Nd5 {[%clk 0:00:39.7]} 28... Bxd5 {[%clk 0:01:01.6]} 29.
Rxd5 {[%clk 0:00:39.8]} 29... Nc5 {[%clk 0:01:00.1]} 30. Bxc5 {[%clk 0:00:39.1]}
30... dxc5 {[%clk 0:00:39.2]} 31. R1d3 {[%clk 0:00:35.6]} 31... Rxd5 {[%clk
0:00:33.6]} 32. Rxd5 {[%clk 0:00:35.2]} 32... Rxd5 {[%clk 0:00:32.4]} 33. exd5
{[%clk 0:00:35.1]} 33... Bd6 {[%clk 0:00:32.6]} 34. Bd3 {[%clk 0:00:31]} 34...
Kg7 {[%clk 0:00:31.9]} 35. Kg2 {[%clk 0:00:26.7]} 35... Qe7 {[%clk 0:00:31.3]}
36. h4 {[%clk 0:00:26.2]} 36... f5 {[%clk 0:00:29.6]} 37. Qg5 {[%clk 0:00:24.5]}
37... Qxg5 {[%clk 0:00:16.3]} 38. hxg5 {[%clk 0:00:24.1]} 38... e4 {[%clk
0:00:16.9]} 39. Be2 {[%clk 0:00:22.9]} 39... Be7 {[%clk 0:00:16.9]} 40. f4
{[%clk 0:00:19.5]} 40... exf3+ {[%clk 0:00:16.6]} 41. Kxf3 {[%clk 0:00:19.9]}
41... Bxg5 {[%clk 0:00:16.8]} 42. a4 {[%clk 0:00:19.1]} 42... Kf6 {[%clk
0:00:16]} 43. Bf1 {[%clk 0:00:17.8]} 43... Ke5 {[%clk 0:00:15.8]} 44. Be2 {[%clk
0:00:17.8]} 44... Bd2 {[%clk 0:00:15.3]} 45. Bf1 {[%clk 0:00:17]} 45... Bg5
{[%clk 0:00:15.2]} 46. Ke2 {[%clk 0:00:16.3]} 46... Be7 {[%clk 0:00:15]} 47. Kd3
{[%clk 0:00:16.3]} 47... Bd6 {[%clk 0:00:15.3]} 48. Ke3 {[%clk 0:00:15.5]} 48...
g5 {[%clk 0:00:12.8]} 49. Be2 {[%clk 0:00:14.9]} 49... g4 {[%clk 0:00:11.7]} 50.
Bd3 {[%clk 0:00:13.9]} 50... Kf6 {[%clk 0:00:11.7]} 51. Kf2 {[%clk 0:00:14.1]}
51... Kg5 {[%clk 0:00:11.7]} 52. Kg2 {[%clk 0:00:14]} 52... f4 {[%clk
0:00:11.6]} 53. gxf4+ {[%clk 0:00:14.1]} 53... Kxf4 {[%clk 0:00:12.5]} 54. Be2
{[%clk 0:00:13.9]} 54... h4 {[%clk 0:00:12.6]} 55. Kf2 {[%clk 0:00:14]} 55... h3
{[%clk 0:00:12.5]} 56. Kg1 {[%clk 0:00:13.9]} 56... g3 {[%clk 0:00:12.1]} 57.
Kh1 {[%clk 0:00:12.5]} 57... Be5 {[%clk 0:00:11.9]} 58. a5 {[%clk 0:00:11.6]}
58... g2+ {[%clk 0:00:10.9]} 59. Kh2 {[%clk 0:00:09]} 59... Kg5+ {[%clk
0:00:10.9]} 60. Kg1 {[%clk 0:00:08.6]} 60... Bd4+ {[%clk 0:00:10.7]} 61. Kh2
{[%clk 0:00:07.9]} 61... g1=Q+ {[%clk 0:00:11.6]} 62. Kxh3 {[%clk 0:00:08.4]}
62... Be5 {[%clk 0:00:11.5]} 0-1

[Event "*** Titled Tuesday Blitz"]
[Site "Chess.com"]
[Date "2020.04.28"]
[Round "6"]
[White "Mykola-Bortnyk"]
[Black "lucliasco"]
[Result "1/2-1/2"]
[WhiteElo "2925"]
[BlackElo "2648"]
[TimeControl "180+1"]
[EndTime "11:08:15 PDT"]
[Termination "Game drawn by repetition"]

1. e4 {[%clk 0:03:00.9]} 1... e5 {[%clk 0:02:46.1]} 2. Nf3 {[%clk 0:02:59.3]}
2... Nc6 {[%clk 0:02:47]} 3. Bc4 {[%clk 0:02:58.9]} 3... Nf6 {[%clk 0:02:45.7]}
4. d4 {[%clk 0:02:50.2]} 4... exd4 {[%clk 0:02:44]} 5. e5 {[%clk 0:02:50.3]}
5... d5 {[%clk 0:02:41.3]} 6. Bb5 {[%clk 0:02:50]} 6... Ne4 {[%clk 0:02:38.3]}
7. Nxd4 {[%clk 0:02:42.9]} 7... Bd7 {[%clk 0:02:38.5]} 8. Bxc6 {[%clk
0:02:42.2]} 8... bxc6 {[%clk 0:02:38.4]} 9. O-O {[%clk 0:02:41.6]} 9... Bc5
{[%clk 0:02:38]} 10. c3 {[%clk 0:02:37.9]} 10... O-O {[%clk 0:02:33.6]} 11. f3
{[%clk 0:02:34.8]} 11... Ng5 {[%clk 0:02:34.1]} 12. Be3 {[%clk 0:02:32.1]} 12...
Bb6 {[%clk 0:02:29.1]} 13. f4 {[%clk 0:02:05.4]} 13... Ne4 {[%clk 0:02:26.3]}
14. Nd2 {[%clk 0:02:04.8]} 14... Nxd2 {[%clk 0:02:22.5]} 15. Qxd2 {[%clk
0:02:04.6]} 15... c5 {[%clk 0:02:23.4]} 16. Nb3 {[%clk 0:02:01.3]} 16... c4
{[%clk 0:02:17]} 17. Nc5 {[%clk 0:01:50.8]} 17... Bf5 {[%clk 0:02:16]} 18. Rad1
{[%clk 0:01:38.1]} 18... c6 {[%clk 0:02:14.5]} 19. Nb7 {[%clk 0:01:33.8]} 19...
Bxe3+ {[%clk 0:02:06]} 20. Qxe3 {[%clk 0:01:34.7]} 20... Qb6 {[%clk 0:02:06.7]}
21. Qxb6 {[%clk 0:01:34.5]} 21... axb6 {[%clk 0:02:04.6]} 22. a3 {[%clk
0:01:35.1]} 22... Bd3 {[%clk 0:01:57.4]} 23. Rf2 {[%clk 0:01:34.4]} 23... Ra7
{[%clk 0:01:57.8]} 24. Nd6 {[%clk 0:01:34.2]} 24... Re7 {[%clk 0:01:55]} 25. Re1
{[%clk 0:01:23.2]} 25... f6 {[%clk 0:01:54.9]} 26. Rf3 {[%clk 0:01:22.1]} 26...
Rd8 {[%clk 0:01:42.7]} 27. Kf2 {[%clk 0:01:21.8]} 27... h5 {[%clk 0:01:43.2]}
28. g3 {[%clk 0:01:20.9]} 28... c5 {[%clk 0:01:36.1]} 29. h3 {[%clk 0:01:17.2]}
29... d4 {[%clk 0:01:31.5]} 30. g4 {[%clk 0:01:14.6]} 30... hxg4 {[%clk
0:01:26.7]} 31. hxg4 {[%clk 0:01:15.5]} 31... dxc3 {[%clk 0:01:17.1]} 32. bxc3
{[%clk 0:01:16.4]} 32... Re6 {[%clk 0:01:15.4]} 33. Rh3 {[%clk 0:01:10.7]} 33...
fxe5 {[%clk 0:01:11.2]} 34. fxe5 {[%clk 0:01:11.3]} 34... Ra8 {[%clk 0:01:05]}
35. Reh1 {[%clk 0:01:04.2]} 35... Rf8+ {[%clk 0:01:05.3]} 36. Kg3 {[%clk
0:01:03.3]} 36... g5 {[%clk 0:01:01.8]} 37. Rh8+ {[%clk 0:00:46.1]} 37... Kg7
{[%clk 0:01:01.9]} 38. Rxf8 {[%clk 0:00:42.6]} 38... Kxf8 {[%clk 0:01:00.8]} 39.
Rh8+ {[%clk 0:00:41.2]} 39... Kg7 {[%clk 0:01:01.1]} 40. Re8 {[%clk 0:00:41.3]}
40... Rxe8 {[%clk 0:00:57.3]} 41. Nxe8+ {[%clk 0:00:42.2]} 41... Kf7 {[%clk
0:00:58.2]} 42. Nc7 {[%clk 0:00:42.7]} 42... Be4 {[%clk 0:00:54.1]} 43. Kf2
{[%clk 0:00:23]} 43... Ke7 {[%clk 0:00:53.4]} 44. Ke3 {[%clk 0:00:23.4]} 44...
Bc6 {[%clk 0:00:52.3]} 45. a4 {[%clk 0:00:24]} 45... Kd7 {[%clk 0:00:39.4]} 46.
Nb5 {[%clk 0:00:24.1]} 46... Ke6 {[%clk 0:00:38.3]} 47. Nd6 {[%clk 0:00:24.5]}
47... Bxa4 {[%clk 0:00:38.2]} 48. Nxc4 {[%clk 0:00:24.8]} 48... Bd1 {[%clk
0:00:29.4]} 49. Nxb6 {[%clk 0:00:20.6]} 49... Bxg4 {[%clk 0:00:30.3]} 50. Na4
{[%clk 0:00:21]} 50... Kd5 {[%clk 0:00:23]} 51. Nb2 {[%clk 0:00:10.5]} 51...
Kxe5 {[%clk 0:00:21.4]} 52. Nc4+ {[%clk 0:00:09.9]} 52... Kd5 {[%clk 0:00:22]}
53. Nb6+ {[%clk 0:00:10.1]} 53... Ke5 {[%clk 0:00:21.2]} 54. Nc4+ {[%clk
0:00:10.3]} 54... Kd5 {[%clk 0:00:20.2]} 55. Nb6+ {[%clk 0:00:10.6]} 55... Ke6
{[%clk 0:00:21.1]} 56. Nc4 {[%clk 0:00:09.6]} 56... Bf5 {[%clk 0:00:21.6]} 57.
Kf3 {[%clk 0:00:08.5]} 57... Kd5 {[%clk 0:00:21]} 58. Ne3+ {[%clk 0:00:09.2]}
58... Ke5 {[%clk 0:00:21.6]} 59. Nc4+ {[%clk 0:00:09.7]} 59... Kf6 {[%clk
0:00:21.6]} 60. Ne3 {[%clk 0:00:09.4]} 60... Be6 {[%clk 0:00:21.9]} 61. Ke4
{[%clk 0:00:09.5]} 61... g4 {[%clk 0:00:19.9]} 62. Kf4 {[%clk 0:00:09.8]} 62...
c4 {[%clk 0:00:19.9]} 63. Nxg4+ {[%clk 0:00:09.5]} 63... Bxg4 {[%clk 0:00:20.5]}
64. Kxg4 {[%clk 0:00:10.4]} 64... Ke5 {[%clk 0:00:21.4]} 65. Kf3 {[%clk
0:00:11.3]} 65... Kf5 {[%clk 0:00:21.8]} 66. Ke3 {[%clk 0:00:11.6]} 66... Ke5
{[%clk 0:00:22.3]} 67. Kf3 {[%clk 0:00:12.2]} 67... Kf5 {[%clk 0:00:22.8]} 68.
Ke3 {[%clk 0:00:12.9]} 68... Ke5 {[%clk 0:00:23.2]} 69. Kf3 {[%clk 0:00:13.6]}
1/2-1/2

[Event "*** Titled Tuesday Blitz"]
[Site "Chess.com"]
[Date "2020.04.28"]
[Round "6"]
[White "Andrei_Belozerov"]
[Black "VincentKeymer"]
[Result "1/2-1/2"]
[WhiteElo "2589"]
[BlackElo "2724"]
[TimeControl "180+1"]
[EndTime "11:08:15 PDT"]
[Termination "Game drawn - insufficient material"]

1. e4 {[%clk 0:03:00.9]} 1... c5 {[%clk 0:02:59.2]} 2. Nf3 {[%clk 0:03:00.5]}
2... e6 {[%clk 0:02:59.3]} 3. d4 {[%clk 0:03:00.3]} 3... cxd4 {[%clk 0:02:59.9]}
4. Nxd4 {[%clk 0:03:00.2]} 4... a6 {[%clk 0:03:00.5]} 5. Bd3 {[%clk 0:02:59.3]}
5... Qc7 {[%clk 0:02:59.1]} 6. O-O {[%clk 0:02:58.2]} 6... Nf6 {[%clk
0:02:59.6]} 7. Qe2 {[%clk 0:02:57.2]} 7... d6 {[%clk 0:02:59.7]} 8. c4 {[%clk
0:02:54.9]} 8... g6 {[%clk 0:02:59.9]} 9. Nc3 {[%clk 0:02:46.5]} 9... Bg7 {[%clk
0:03:00.2]} 10. Be3 {[%clk 0:02:43.2]} 10... O-O {[%clk 0:02:59.7]} 11. f4
{[%clk 0:02:38.7]} 11... Nc6 {[%clk 0:02:56.9]} 12. Rac1 {[%clk 0:02:33.4]}
12... e5 {[%clk 0:02:47.9]} 13. Nxc6 {[%clk 0:02:31.8]} 13... bxc6 {[%clk
0:02:46.6]} 14. f5 {[%clk 0:02:31.2]} 14... gxf5 {[%clk 0:02:41.2]} 15. exf5
{[%clk 0:02:30.7]} 15... Kh8 {[%clk 0:02:29]} 16. Ne4 {[%clk 0:02:26.6]} 16...
Nxe4 {[%clk 0:02:21.6]} 17. Bxe4 {[%clk 0:02:25.7]} 17... f6 {[%clk 0:02:22]}
18. Qf3 {[%clk 0:02:24.1]} 18... Bb7 {[%clk 0:02:19.9]} 19. Rfd1 {[%clk
0:02:23.3]} 19... Rfd8 {[%clk 0:02:16.9]} 20. b4 {[%clk 0:02:22.3]} 20... Rac8
{[%clk 0:02:13.1]} 21. a4 {[%clk 0:02:18.8]} 21... Qf7 {[%clk 0:02:04.7]} 22. b5
{[%clk 0:02:10.1]} 22... d5 {[%clk 0:01:53.8]} 23. cxd5 {[%clk 0:02:09.4]} 23...
cxd5 {[%clk 0:01:49.2]} 24. Rxc8 {[%clk 0:02:08]} 24... Bxc8 {[%clk 0:01:41.4]}
25. Bxd5 {[%clk 0:02:07.2]} 25... Qe7 {[%clk 0:01:35]} 26. b6 {[%clk 0:02:06.1]}
26... e4 {[%clk 0:01:33.3]} 27. Bxe4 {[%clk 0:01:59.7]} 27... Rxd1+ {[%clk
0:01:23]} 28. Qxd1 {[%clk 0:01:58.6]} 28... Bb7 {[%clk 0:01:23.3]} 29. Bxb7
{[%clk 0:01:17.1]} 29... Qxe3+ {[%clk 0:01:22.3]} 30. Kh1 {[%clk 0:01:16.8]}
30... Qxb6 {[%clk 0:01:22.6]} 31. Bxa6 {[%clk 0:01:16.5]} 31... Bf8 {[%clk
0:01:22.4]} 32. Bc4 {[%clk 0:01:11.9]} 32... Bc5 {[%clk 0:00:59.9]} 33. g3
{[%clk 0:01:02.6]} 33... Bd4 {[%clk 0:00:54.9]} 34. Qf3 {[%clk 0:00:57.5]} 34...
Qc5 {[%clk 0:00:36.4]} 35. Qd5 {[%clk 0:00:54]} 35... Qxd5+ {[%clk 0:00:26]} 36.
Bxd5 {[%clk 0:00:53.3]} 36... Bb6 {[%clk 0:00:24.1]} 37. Kg2 {[%clk 0:00:52.7]}
37... Kg7 {[%clk 0:00:24.1]} 38. Kf3 {[%clk 0:00:52.6]} 38... Kf8 {[%clk
0:00:24.2]} 39. Kg4 {[%clk 0:00:51.3]} 39... Ba5 {[%clk 0:00:19.7]} 40. Bc4
{[%clk 0:00:49.9]} 40... h6 {[%clk 0:00:19.1]} 41. Kh5 {[%clk 0:00:49.2]} 41...
Kg7 {[%clk 0:00:19.2]} 42. h3 {[%clk 0:00:47.3]} 42... Kh7 {[%clk 0:00:18.9]}
43. Kg4 {[%clk 0:00:44.9]} 43... Kg7 {[%clk 0:00:18.4]} 44. Kf3 {[%clk 0:00:45]}
44... Kf8 {[%clk 0:00:16.1]} 45. g4 {[%clk 0:00:44.2]} 45... Ke7 {[%clk
0:00:16.2]} 46. Ke4 {[%clk 0:00:41]} 46... Kd6 {[%clk 0:00:16.2]} 47. Bf7 {[%clk
0:00:40.7]} 47... Be1 {[%clk 0:00:15.3]} 48. Be8 {[%clk 0:00:40.3]} 48... Kc5
{[%clk 0:00:14.5]} 49. Bb5 {[%clk 0:00:39.3]} 49... Bd2 {[%clk 0:00:14.1]} 50.
h4 {[%clk 0:00:37.1]} 50... Bc3 {[%clk 0:00:14.2]} 51. Kf3 {[%clk 0:00:34.3]}
51... Bb4 {[%clk 0:00:07.8]} 52. g5 {[%clk 0:00:29.4]} 52... fxg5 {[%clk
0:00:07.7]} 53. hxg5 {[%clk 0:00:28.3]} 53... hxg5 {[%clk 0:00:08.6]} 54. Kg4
{[%clk 0:00:28.3]} 54... Bd2 {[%clk 0:00:08.1]} 55. f6 {[%clk 0:00:27.9]} 55...
Kd6 {[%clk 0:00:08.3]} 56. Kf5 {[%clk 0:00:27.4]} 56... g4 {[%clk 0:00:03.2]}
57. a5 {[%clk 0:00:18.5]} 57... g3 {[%clk 0:00:03.4]} 58. Bf1 {[%clk 0:00:14.9]}
58... Bxa5 {[%clk 0:00:03.2]} 59. Kg4 {[%clk 0:00:14]} 59... Ke6 {[%clk
0:00:02.9]} 60. Kxg3 {[%clk 0:00:13.2]} 60... Kxf6 {[%clk 0:00:03.3]} 1/2-1/2